fUSD/lending_fUSD_20251017
["ID","MTS","AMOUNT","RATE_DAILY","PERIOD"]
[391666407,1760723461864,-554.07051081,0.00031508,2]
[391666408,1760723461874,-500.0,0.00031508,2]
[391666409,1760723461884,-1792.0,0.00031508,2]
[391666410,1760723461894,-500.0,0.00031508,2]
[391666411,1760723461903,-1566.0,0.00031508,2]
[391666412,1760723461914,-500.0,0.00031563,2]
[391666413,1760723461923,-500.0,0.00031563,2]
[391666414,1760723461933,-500.0,0.00031563,2]
[391666415,1760723461943,-458.0,0.00031563,2]
[391666416,1760723461954,-500.0,0.00031563,2]
[391666417,1760723461964,-1792.0,0.00031563,2]
[391666418,1760723461974,-500.0,0.00031563,2]
[391666419,1760723461984,-1566.0,0.00031563,2]
[391666420,1760723461994,-359.76179104,0.00031585,2]
[391666421,1760723462005,-287.61899177,0.00031585,2]
[391666422,1760723462015,-6397.21,0.000316,2]
[391666423,1760723462024,-500.0,0.00031617,2]
[391666424,1760723462034,-209.80207027,0.00031617,2]
[391666425,1760723462044,-503.39807128,0.00031617,2]
[391666426,1760723462054,-458.0,0.00031617,2]
[391666427,1760723462064,-500.0,0.00031617,2]
[391666428,1760723462074,-1792.0,0.00031617,2]
[391666429,1760723462084,-500.0,0.00031617,2]
[391666430,1760723462094,-1566.0,0.00031617,2]
[391666431,1760723462105,-161.76895716,0.00031633,2]
[391666432,1760723462115,-500.0,0.00031672,2]
[391666433,1760723462125,-458.0,0.00031672,2]
[391666434,1760723462135,-352.53651065,0.00031672,2]
[391666435,1760723462145,-1792.0,0.00031672,2]
[391666436,1760723462155,-500.0,0.00031672,2]
[391666437,1760723462164,-1566.0,0.00031672,2]
[391666438,1760723462173,-179.0,0.000317,120]
[391666439,1760723462183,-168.0,0.00031719,2]
[391666440,1760723462193,-500.0,0.00031727,2]
[391666441,1760723462203,-458.0,0.00031727,2]
[391666442,1760723462213,-1792.0,0.00031727,2]
[391666443,1760723462222,-500.0,0.00031727,2]
[391666444,1760723462232,-1566.0,0.00031727,2]
[391666445,1760723462241,-168.0,0.0003173,2]
[391666446,1760723462251,-168.0,0.00031741,2]
[391666447,1760723462260,-300.40373765,0.0003177,2]
[391666448,1760723462271,-1579.12,0.0003178,120]
[391666449,1760723462280,-500.0,0.00031782,2]
[391666450,1760723462290,-458.0,0.00031782,2]
[391666451,1760723462299,-1792.0,0.00031782,2]
[391666452,1760723462309,-500.0,0.00031782,2]
[391666453,1760723462318,-1566.0,0.00031782,2]
[391666454,1760723462328,-725.14,0.000318,2]
[391666455,1760723462337,-723.93,0.000318,30]
[391666456,1760723462345,-673.0,0.00031803,2]
[391666457,1760723462359,-286.25408731,0.0003182,15]
[391666458,1760723462368,-500.0,0.00031837,2]
[391666459,1760723462377,-458.0,0.00031837,2]
[391666460,1760723462386,-1792.0,0.00031837,2]
[391666461,1760723462395,-500.0,0.00031837,2]
[391666462,1760723462404,-1566.0,0.00031837,2]
[391666463,1760723462414,-150.0,0.00031882,7]
[391666464,1760723462424,-150.0,0.00031882,7]
[391666465,1760723462433,-150.0,0.00031882,7]
[391666466,1760723462442,-188.88797475,0.00031882,7]
[391666467,1760723462451,-150.0,0.00031882,7]
[391666468,1760723462461,-150.0,0.00031882,7]
[391666469,1760723462763,-150.0,0.00031882,7]
[391666470,1760723462774,-150.0,0.00031882,7]
[391666471,1760723462785,-150.0,0.00031882,7]
[391666472,1760723462795,-150.0,0.00031882,7]
[391666473,1760723462805,-150.0,0.00031882,7]
[391666474,1760723462815,-150.0,0.00031882,7]
[391666475,1760723462825,-161.90960499,0.00031882,7]
[391666476,1760723462834,-150.0,0.00031882,7]
[391666477,1760723462844,-150.0,0.00031882,7]
[391666478,1760723462858,-150.0,0.00031882,7]
[391666479,1760723462867,-150.0,0.00031882,7]
[391666480,1760723462877,-268.0,0.00031891,2]
[391666481,1760723462887,-458.0,0.00031891,2]
[391666482,1760723462897,-1792.0,0.00031891,2]
[391666483,1760723462907,-500.0,0.00031891,2]
[391666484,1760723462918,-1566.0,0.00031891,2]
[391666485,1760723462927,-168.0,0.00031903,2]
[391666486,1760723462938,-188.88797475,0.00031918,7]
[391666487,1760723462947,-150.0,0.00031919,7]
[391666488,1760723462958,-150.0,0.00031928,7]
[391666489,1760723462968,-150.0,0.00031941,7]
[391666490,1760723462977,-458.0,0.00031946,2]
[391666491,1760723462987,-1792.0,0.00031946,2]
[391666492,1760723462998,-500.0,0.00031946,2]
[391666493,1760723463008,-1566.0,0.00031946,2]
[391666494,1760723463019,-188.88797475,0.00031954,7]
[391666495,1760723463029,-150.0,0.00031954,7]
[391666496,1760723463038,-150.0,0.00031956,7]
[391666497,1760723463048,-155.34,0.00031962,2]
[391666498,1760723463059,-150.0,0.00031974,7]
[391666499,1760723463068,-188.88797475,0.0003199,7]
[391666500,1760723463078,-150.0,0.00031993,7]
[391666501,1760723463089,-150.0,0.00031993,7]
[391666502,1760723463100,-2000.0,0.00031997,120]
[391666503,1760723463110,-500.0,0.00031997,120]
[391666504,1760723463124,-153.0,0.00032,120]
[391666505,1760723463135,-150.0,0.00032,7]
[391666506,1760723463145,-458.0,0.00032001,2]
[391666507,1760723463155,-1792.0,0.00032001,2]
[391666508,1760723463165,-500.0,0.00032001,2]
[391666509,1760723463175,-1566.0,0.00032001,2]
[391666510,1760723463186,-150.0,0.00032018,120]
[391666511,1760723463196,-150.0,0.0003202,7]
[391666512,1760723463206,-150.0,0.00032024,7]
[391666513,1760723463216,-188.88797475,0.00032025,7]
[391666514,1760723463226,-150.0,0.00032027,7]
[391666515,1760723463237,-150.0,0.0003203,7]
[391666516,1760723463246,-168.0,0.0003204,2]
[391666517,1760723463256,-168.0,0.00032044,2]
[391666518,1760723463266,-600.0,0.00032054,23]
[391666519,1760723463277,-458.0,0.00032056,2]
[391666520,1760723463288,-1792.0,0.00032056,2]
[391666521,1760723463298,-500.0,0.00032056,2]
[391666522,1760723463308,-1566.0,0.00032056,2]
[391666523,1760723463319,-150.0,0.00032059,7]
[391666524,1760723463329,-150.0,0.00032059,7]
[391666525,1760723463345,-150.0,0.00032059,7]
[391666526,1760723463358,-188.88797475,0.00032061,7]
[391666527,1760723463368,-3364.0,0.00032066,5]
[391666528,1760723463378,-150.0,0.00032066,7]
[391666529,1760723463388,-150.0,0.00032067,7]
[391666530,1760723463398,-500.0,0.00032082,2]
[391666531,1760723463408,-188.88797475,0.00032097,7]
[391666532,1760723463418,-150.0,0.00032099,7]
[391666533,1760723463427,-150.0,0.00032104,7]
[391666534,1760723463438,-150.0,0.00032104,7]
[391666535,1760723463449,-458.0,0.00032111,2]
[391666536,1760723463459,-1792.0,0.00032111,2]
[391666537,1760723463468,-500.0,0.00032111,2]
[391666538,1760723463478,-1566.0,0.00032111,2]
[391666539,1760723463488,-150.0,0.00032112,7]
[391666540,1760723463497,-150.0,0.00032118,7]
[391666541,1760723463507,-188.88797475,0.00032133,7]
[391666542,1760723463516,-150.0,0.0003214,7]
[391666543,1760723463526,-150.0,0.00032158,7]
[391666544,1760723463536,-458.0,0.00032165,2]
[391666545,1760723463546,-1792.0,0.00032165,2]
[391666546,1760723463555,-500.0,0.00032165,2]
[391666547,1760723463565,-1566.0,0.00032165,2]
[391666548,1760723463575,-150.0,0.00032166,7]
[391666549,1760723463584,-188.88797475,0.00032168,7]
[391666550,1760723463600,-150.0,0.00032171,7]
[391666551,1760723463610,-150.0,0.00032177,7]
[391666552,1760723463619,-150.0,0.00032177,7]
[391666553,1760723463629,-150.0,0.00032204,7]
[391666554,1760723463640,-188.88797475,0.00032204,7]
[391666555,1760723463649,-150.0,0.00032204,7]
[391666556,1760723463658,-150.0,0.00032214,7]
[391666557,1760723463669,-150.0,0.00032214,7]
[391666558,1760723463679,-458.0,0.0003222,2]
[391666559,1760723463688,-1792.0,0.0003222,2]
[391666560,1760723463698,-500.0,0.0003222,2]
[391666561,1760723463708,-1566.0,0.0003222,2]
[391666562,1760723463718,-522.74,0.00032227,2]
[391666563,1760723463728,-150.0,0.00032236,7]
[391666564,1760723463738,-150.0,0.00032236,7]
[391666565,1760723463748,-150.0,0.00032236,7]
[391666566,1760723463759,-150.0,0.00032236,7]
[391666567,1760723463769,-188.88797475,0.0003224,7]
[391666568,1760723463779,-150.0,0.00032244,7]
[391666569,1760723463789,-150.0,0.0003225,7]
[391666570,1760723463799,-150.0,0.00032251,7]
[391666571,1760723463808,-458.0,0.00032275,2]
[391666572,1760723463818,-1792.0,0.00032275,2]
[391666573,1760723463828,-500.0,0.00032275,2]
[391666574,1760723463839,-1566.0,0.00032275,2]
[391666575,1760723463850,-188.88797475,0.00032276,7]
[391666576,1760723463860,-501.0,0.00032285,120]
[391666577,1760723463869,-150.0,0.00032288,7]
[391666578,1760723463879,-150.0,0.00032295,7]
[391666579,1760723463889,-150.0,0.00032296,7]
[391666580,1760723463899,-150.0,0.00032307,7]
[391666581,1760723463909,-188.88797475,0.00032312,7]
[391666582,1760723463919,-150.0,0.00032316,7]
[391666583,1760723463928,-150.0,0.00032325,7]
[391666584,1760723463939,-150.0,0.00032325,7]
[391666585,1760723463949,-378.74022571,0.00032329,7]
[391666586,1760723463959,-458.0,0.0003233,2]
[391666587,1760723463969,-1792.0,0.0003233,2]
[391666588,1760723463979,-500.0,0.0003233,2]
[391666589,1760723463989,-1566.0,0.0003233,2]
[391666590,1760723463999,-150.0,0.00032342,7]
[391666591,1760723464008,-188.88797475,0.00032347,7]
[391666592,1760723464019,-150.0,0.00032355,7]
[391666593,1760723464028,-150.0,0.00032362,7]
[391666594,1760723464038,-188.88797475,0.00032383,7]
[391666595,1760723464047,-458.0,0.00032384,2]
[391666596,1760723464058,-1792.0,0.00032384,2]
[391666597,1760723464068,-500.0,0.00032384,2]
[391666598,1760723464077,-1566.0,0.00032384,2]
[391666599,1760723464087,-150.0,0.00032388,7]
[391666600,1760723464097,-150.0,0.00032388,7]
[391666601,1760723464107,-150.0,0.00032388,7]
[391666602,1760723464116,-150.0,0.00032399,7]
[391666603,1760723464126,-179.0,0.000324,120]
[391666604,1760723464136,-6397.21,0.000324,2]
[391666605,1760723464145,-150.0,0.00032414,7]
[391666606,1760723464155,-150.0,0.00032414,7]
[391666607,1760723464165,-150.0,0.00032414,7]
[391666608,1760723464175,-188.88797475,0.00032419,7]
[391666609,1760723464186,-150.0,0.00032434,7]
[391666610,1760723464195,-150.0,0.00032436,7]
[391666611,1760723464204,-150.0,0.00032436,7]
[391666612,1760723464214,-500.0,0.00032438,2]
[391666613,1760723464223,-466.0,0.00032439,2]
[391666614,1760723464233,-1805.62850788,0.00032439,2]
[391666615,1760723464242,-500.0,0.00032439,2]
[391666616,1760723464252,-1586.90832584,0.00032439,2]
[391666617,1760723464263,-150.0,0.00032449,7]
[391666618,1760723464272,-168.0,0.0003245,2]
[391666619,1760723464281,-150.0,0.00032453,120]
[391666620,1760723464291,-188.88797475,0.00032455,7]
[391666621,1760723464301,-150.0,0.00032461,7]
[391666622,1760723464311,-5377.53426996,0.00032467,2]
[391666623,1760723464321,-150.0,0.00032473,7]
[391666624,1760723464331,-150.0,0.00032473,7]
[391666625,1760723464340,-150.0,0.00032473,7]
[391666626,1760723464352,-150.0,0.0003248,7]
[391666627,1760723464362,-188.88797475,0.0003249,7]
[391666628,1760723464372,-500.0,0.00032494,2]
[391666629,1760723464382,-150.0,0.0003251,7]
[391666630,1760723464392,-168.0,0.00032526,2]
[391666631,1760723464402,-150.0,0.00032526,7]
[391666632,1760723464411,-188.88797475,0.00032526,7]
[391666633,1760723464421,-150.0,0.00032526,7]
[391666634,1760723464431,-150.0,0.00032532,7]
[391666635,1760723464441,-150.0,0.00032533,7]
[391666636,1760723464451,-150.0,0.00032546,7]
[391666637,1760723464461,-150.0,0.00032546,7]
[391666638,1760723464471,-500.0,0.00032549,2]
[391666639,1760723464481,-500.0,0.00032549,2]
[391666640,1760723464491,-150.0,0.00032562,120]
[391666641,1760723464501,-188.88797475,0.00032562,7]
[391666642,1760723464511,-150.0,0.00032572,7]
[391666643,1760723464521,-150.0,0.00032583,7]
[391666644,1760723464531,-150.0,0.00032591,7]
[391666645,1760723464540,-150.0,0.00032591,7]
[391666646,1760723464550,-150.0,0.00032591,7]
[391666647,1760723464560,-150.0,0.00032591,7]
[391666648,1760723464570,-150.0,0.00032591,7]
[391666649,1760723464579,-188.88797475,0.00032598,7]
[391666650,1760723464591,-500.0,0.00032604,2]
[391666651,1760723464603,-150.0,0.00032605,7]
[391666652,1760723464613,-168.0,0.00032612,2]
[391666653,1760723464623,-150.0,0.00032618,7]
[391666654,1760723464633,-150.0,0.0003262,7]
[391666655,1760723464643,-188.88797475,0.00032634,7]
[391666656,1760723464653,-168.0,0.00032647,2]
[391666657,1760723464663,-150.0,0.0003265,7]
[391666658,1760723464674,-150.0,0.00032657,7]
[391666659,1760723464685,-150.0,0.00032657,7]
[391666660,1760723464695,-500.0,0.00032658,2]
[391666661,1760723464704,-150.0,0.00032664,7]
[391666662,1760723464714,-188.88797475,0.00032669,7]
[391666663,1760723464724,-150.0,0.00032677,7]
[391666664,1760723464734,-150.0,0.00032694,7]
[391666665,1760723464744,-188.88797475,0.00032705,7]
[391666666,1760723464754,-150.0,0.00032709,7]
[391666667,1760723464763,-150.0,0.0003271,7]
[391666668,1760723464774,-500.0,0.00032713,2]
[391666669,1760723464784,-150.0,0.00032731,7]
[391666670,1760723464796,-150.0,0.00032732,7]
[391666671,1760723464805,-188.88797475,0.00032741,7]
[391666672,1760723464814,-150.0,0.0003275,7]
[391666673,1760723464824,-150.0,0.00032756,7]
[391666674,1760723464834,-150.0,0.00032768,7]
[391666675,1760723464844,-150.0,0.00032768,7]
[391666676,1760723464855,-150.0,0.00032768,7]
[391666677,1760723464865,-150.0,0.00032768,7]
[391666678,1760723464875,-150.0,0.00032768,7]
[391666679,1760723464885,-150.0,0.00032768,7]
[391666680,1760723464895,-500.0,0.00032768,2]
[391666681,1760723464905,-188.88797475,0.00032777,7]
[391666682,1760723464915,-1043.73,0.000328,30]
[391666683,1760723464925,-150.0,0.00032802,7]
[391666684,1760723464936,-150.0,0.00032805,7]
[391666685,1760723464946,-188.88797475,0.00032813,7]
[391666686,1760723464957,-150.0,0.00032822,7]
[391666687,1760723464967,-500.0,0.00032823,2]
[391666689,1760723464977,-150.0,0.00032827,7]
[391666690,1760723464987,-150.0,0.00032842,7]
[391666691,1760723464997,-150.0,0.00032848,7]
[391666692,1760723465007,-188.88797475,0.00032848,7]
[391666693,1760723465018,-150.0,0.00032848,7]
[391666694,1760723465029,-150.0,0.00032874,7]
[391666695,1760723465039,-500.0,0.00032876,120]
[391666696,1760723465050,-1579.12,0.00032876,120]
[391666697,1760723465060,-6776.0625,0.00032876,4]
[391666698,1760723465071,-500.0,0.00032878,2]
[391666699,1760723465082,-150.0,0.00032879,7]
[391666700,1760723465092,-150.0,0.00032879,7]
[391666701,1760723465101,-1900.0,0.00032882,7]
[391666702,1760723465111,-600.0,0.00032882,7]
[391666703,1760723465121,-500.0,0.00032882,7]
[391666704,1760723465131,-188.88797475,0.00032884,7]
[391666705,1760723465142,-150.0,0.00032886,7]
[391666706,1760723465151,-150.0,0.00032894,7]
[391666707,1760723465161,-150.0,0.00032894,7]
[391666708,1760723465171,-150.0,0.00032894,7]
[391666709,1760723465181,-151.0,0.00032897,14]
[391666710,1760723465190,-725.14,0.000329,2]
[391666711,1760723465199,-723.93,0.000329,30]
[391666712,1760723465210,-9200.0,0.000329,12]
[391666713,1760723465220,-883100.97173989,0.000329,2]
[391666714,1760723465296,-150.0,0.00032915,7]
[391666715,1760723465307,-150.0,0.00032917,120]
[391666716,1760723465317,-188.88797475,0.0003292,7]
[391666717,1760723465326,-200.0,0.00032924,10]
[391666718,1760723465337,-505.96205694,0.00032932,2]
[391666719,1760723465346,-150.0,0.0003294,7]
[391666720,1760723465357,-150.0,0.00032945,7]
[391666721,1760723465368,-150.0,0.00032945,7]
[391666722,1760723465379,-150.0,0.00032945,7]
[391666723,1760723465388,-150.0,0.00032945,7]
[391666724,1760723465399,-150.0,0.00032952,7]
[391666725,1760723465408,-373.07297731,0.00032954,2]
[391666726,1760723465418,-298.26089446,0.00032954,2]
[391666727,1760723465428,-188.88797475,0.00032956,7]
[391666728,1760723465438,-721.12765535,0.00032956,2]
[391666729,1760723465448,-693.3919763,0.00032956,2]
[391666730,1760723465458,-150.0,0.00032967,7]
[391666731,1760723465467,-150.0,0.00032986,7]
[391666732,1760723465477,-150.0,0.00032989,7]
[391666733,1760723465487,-150.0,0.00032989,7]
[391666734,1760723465501,-188.88797475,0.00032991,7]
[391666735,1760723465511,-160.0,0.00033,30]
[391666736,1760723465521,-526.370776,0.00033,8]
[391666737,1760723465531,-153.0,0.00033,120]
[391666738,1760723465541,-150.0,0.00033004,7]
[391666739,1760723465551,-150.0,0.00033016,7]
[391666740,1760723465561,-150.0,0.00033026,7]
[391666741,1760723465571,-188.88797475,0.00033027,7]
[391666742,1760723465580,-150.0,0.00033032,7]
[391666743,1760723465593,-150.0,0.00033039,7]
[391666744,1760723465605,-300.0,0.00033059,61]
[391666745,1760723465615,-1091.0,0.0003306,5]
[391666746,1760723465624,-150.0,0.00033063,7]
[391666747,1760723465635,-150.0,0.00033063,7]
[391666748,1760723465648,-188.88797475,0.00033063,7]
[391666749,1760723465657,-150.0,0.00033063,7]
[391666750,1760723465669,-150.0,0.00033063,7]
[391666751,1760723465679,-2050.0,0.00033073,2]
[391666752,1760723465688,-1267.0,0.00033073,2]
[391666753,1760723465697,-3408.0,0.00033073,2]
[391666754,1760723465707,-749.0,0.00033073,2]
[391666755,1760723465717,-1310.0,0.00033073,2]
[391666756,1760723465726,-605.0,0.00033073,2]
[391666757,1760723465735,-571.0,0.00033073,2]
[391666758,1760723465745,-1589.0,0.00033073,2]
[391666759,1760723465755,-1183.0,0.00033073,2]
[391666760,1760723465764,-902.0,0.00033073,2]
[391666761,1760723465774,-816.0,0.00033073,2]
[391666762,1760723465783,-3356.0,0.00033073,2]
[391666763,1760723465793,-557.0,0.00033073,2]
[391666764,1760723465802,-150.0,0.00033078,7]
[391666765,1760723465813,-188.88797475,0.00033099,7]
[391666766,1760723465824,-150.0,0.000331,7]
[391666767,1760723465833,-150.0,0.000331,7]
[391666768,1760723465844,-179.0,0.000331,120]
[391666769,1760723465857,-150.0,0.00033111,7]
[391666770,1760723465867,-150.0,0.00033122,7]
[391666771,1760723465880,-150.0,0.00033122,7]
[391666772,1760723465890,-150.0,0.00033122,7]
[391666773,1760723465899,-150.0,0.00033124,7]
[391666774,1760723465910,-188.88797475,0.00033135,7]
[391666775,1760723465920,-150.0,0.00033137,7]
[391666776,1760723465930,-394.57666118,0.00033139,2]
[391666777,1760723465939,-150.0,0.00033157,7]
[391666778,1760723465950,-417.98,0.00033165,2]
[391666779,1760723465959,-150.0,0.0003317,7]
[391666780,1760723465970,-188.88797475,0.0003317,7]
[391666781,1760723465980,-150.0,0.0003317,7]
[391666782,1760723465990,-150.0,0.00033174,7]
[391666783,1760723466000,-150.0,0.00033181,7]
[391666784,1760723466011,-150.0,0.00033184,7]
[391666785,1760723466021,-6397.21,0.000332,2]
[391666786,1760723466032,-188.88797475,0.00033206,7]
[391666787,1760723466042,-150.0,0.00033211,7]
[391666788,1760723466052,-150.0,0.00033211,7]
[391666789,1760723466061,-150.0,0.00033216,7]
[391666790,1760723466071,-150.0,0.0003324,7]
[391666791,1760723466080,-188.88797475,0.00033242,7]
[391666792,1760723466090,-150.0,0.00033248,7]
[391666793,1760723466099,-150.0,0.00033256,7]
[391666794,1760723466110,-150.0,0.00033262,7]
[391666795,1760723466121,-188.88797475,0.00033278,7]
[391666796,1760723466130,-150.0,0.00033284,7]
[391666797,1760723466140,-502.0,0.00033285,120]
[391666798,1760723466150,-500.0,0.00033299,17]
[391666799,1760723466159,-150.0,0.00033299,20]
[391666800,1760723466169,-150.0,0.00033299,7]
[391666801,1760723466178,-150.0,0.00033299,7]
[391666802,1760723466188,-150.0,0.00033299,7]
[391666803,1760723466198,-150.0,0.00033299,7]
[391666804,1760723466208,-150.0,0.00033299,7]
[391666805,1760723466218,-150.0,0.00033308,7]
[391666806,1760723466227,-1000.0,0.00033309,4]
[391666807,1760723466238,-188.88797475,0.00033313,7]
[391666808,1760723466248,-150.0,0.00033321,7]
[391666809,1760723466258,-150.0,0.00033321,7]
[391666810,1760723466267,-150.0,0.00033328,7]
[391666811,1760723466276,-173.00126746,0.00033346,2]
[391666812,1760723466285,-188.88797475,0.00033349,7]
[391666813,1760723466294,-150.0,0.00033354,7]
[391666814,1760723466304,-150.0,0.00033358,7]
[391666815,1760723466314,-150.0,0.00033358,7]
[391666816,1760723466325,-188.88797475,0.00033385,7]
[391666817,1760723466335,-150.0,0.00033395,7]
[391666818,1760723466345,-150.0,0.000334,7]
[391666819,1760723466355,-150.0,0.000334,7]
[391666820,1760723466366,-150.0,0.000334,7]
[391666821,1760723466376,-150.0,0.00033417,7]
[391666822,1760723466385,-188.88797475,0.00033421,7]
[391666823,1760723466395,-150.0,0.00033432,7]
[391666824,1760723466405,-150.0,0.00033432,7]
[391666825,1760723466419,-500.0,0.00033433,17]
[391666826,1760723466428,-500.0,0.00033433,17]
[391666827,1760723466437,-505.96262885,0.00033433,17]
[391666828,1760723466446,-150.0,0.00033441,7]
[391666829,1760723466455,-500.0,0.00033443,17]
[391666830,1760723466465,-500.0,0.00033443,17]
[391666831,1760723466474,-500.0,0.00033443,2]
[391666832,1760723466483,-500.0,0.00033443,17]
[391666833,1760723466492,-288518.583,0.00033444,2]
[391666834,1760723466501,-150.0,0.00033446,7]
[391666835,1760723466511,-188.88797475,0.00033457,7]
[391666836,1760723466521,-150.0,0.00033469,7]
[391666837,1760723466531,-150.0,0.00033473,7]
[391666838,1760723466540,-150.0,0.00033476,7]
[391666839,1760723466550,-150.0,0.00033476,7]
[391666840,1760723466559,-150.0,0.00033476,7]
[391666841,1760723466568,-150.0,0.00033492,7]
[391666842,1760723466577,-188.88797475,0.00033492,7]
[391666843,1760723466587,-150.0,0.00033492,7]
[391666844,1760723466601,-150.0,0.00033506,7]
[391666845,1760723466611,-188.88797475,0.00033528,7]
[391666846,1760723466621,-150.0,0.00033535,7]
[391666847,1760723466631,-150.0,0.00033538,7]
[391666848,1760723466641,-150.0,0.00033543,7]
[391666849,1760723466651,-150.0,0.00033543,7]
[391666850,1760723466660,-150.0,0.00033545,7]
[391666851,1760723466673,-2839.37698228,0.00033549,2]
[391666852,1760723466682,-188.88797475,0.00033564,7]
[391666853,1760723466692,-150.0,0.0003358,7]
[391666854,1760723466701,-150.0,0.00033583,7]
[391666855,1760723466711,-150.0,0.00033584,7]
[391666856,1760723466720,-150.0,0.00033594,7]
[391666857,1760723466729,-188.88797475,0.000336,7]
[391666858,1760723466739,-150.0,0.00033617,7]
[391666859,1760723466748,-150.0,0.00033617,7]
[391666860,1760723466758,-150.0,0.0003363,7]
[391666861,1760723466767,-286.25408731,0.00033635,15]
[391666862,1760723466777,-188.88797475,0.00033636,7]
[391666863,1760723466787,-150.0,0.00033653,7]
[391666864,1760723466796,-150.0,0.00033653,7]
[391666865,1760723466806,-150.0,0.00033653,7]
[391666866,1760723466816,-150.0,0.00033653,7]
[391666867,1760723466825,-150.0,0.00033653,7]
[391666868,1760723466835,-150.0,0.00033653,7]
[391666869,1760723466844,-150.0,0.00033653,7]
[391666870,1760723466855,-150.0,0.00033653,7]
[391666871,1760723466864,-188.88797475,0.00033671,7]
[391666872,1760723466874,-150.0,0.00033674,120]
[391666873,1760723466884,-150.0,0.00033676,7]
[391666874,1760723466894,-150.0,0.0003369,7]
[391666875,1760723466903,-150.0,0.0003369,7]
[391666876,1760723466913,-179.0,0.000337,120]
[391666877,1760723466922,-1900.0,0.00033704,7]
[391666878,1760723466932,-600.0,0.00033704,7]
[391666879,1760723466941,-500.0,0.00033704,7]
[391666880,1760723466951,-188.88797475,0.00033707,7]
[391666881,1760723466961,-150.0,0.00033712,7]
[391666882,1760723466970,-150.0,0.00033722,7]
[391666883,1760723466980,-150.0,0.00033724,7]
[391666884,1760723466990,-150.0,0.00033727,7]
[391666885,1760723467000,-188.88797475,0.00033743,7]
[391666886,1760723467010,-150.0,0.00033762,7]
[391666887,1760723467019,-150.0,0.00033764,7]
[391666888,1760723467029,-150.0,0.00033764,7]
[391666889,1760723467038,-150.0,0.00033768,7]
[391666890,1760723467048,-150.0,0.00033772,7]
[391666891,1760723467058,-500.0,0.00033775,17]
[391666892,1760723467067,-188.88797475,0.00033779,7]
[391666893,1760723467076,-7446.516919,0.00033786,2]
[391666894,1760723467085,-44499.2270723,0.00033786,2]
[391666895,1760723467095,-150.0,0.00033801,7]
[391666896,1760723467107,-150.0,0.00033814,7]
[391666897,1760723467116,-188.88797475,0.00033814,7]
[391666898,1760723467126,-150.0,0.00033814,7]
[391666899,1760723467136,-150.0,0.00033831,7]
[391666900,1760723467146,-150.0,0.00033831,7]
[391666901,1760723467155,-150.0,0.00033831,7]
[391666902,1760723467165,-150.0,0.00033834,7]
[391666903,1760723467175,-150.0,0.00033838,7]
[391666904,1760723467184,-188.88797475,0.0003385,7]
[391666905,1760723467194,-150.0,0.0003386,7]
[391666906,1760723467203,-150.0,0.00033864,120]
[391666907,1760723467214,-150.0,0.00033866,7]